Workbook

Sheet StockData
A1: الرمز | B1: أخر
A2: =[1]!LinkEx("b0ed861a-2a5e-49e9-9713-b7c0c5878c61","Name","CASE~ACAMD","3331") -> ACAMD | B2: =[1]!LinkEx("b0ed861a-2a5e-49e9-9713-b7c0c5878c61","LastTradePrice","CASE~ACAMD","3331") -> 0.955 | C2: =B2 -> 0.955 | D2: 0.753 - 0.800 | E2: 0.821 - 0.850 | F2: 0 | G2: 0.902 - 0.912 | H2: 0.913 - 0.950 | I2: 0.951 - 0.965 | J2: 0 | K2: 0 | L2: 0
A3: =[1]!LinkEx("b0ed861a-2a5e-49e9-9713-b7c0c5878c61","Name","CASE~ACAP","3331") -> ACAP | B3: =[1]!LinkEx("b0ed861a-2a5e-49e9-9713-b7c0c5878c61","LastTradePrice","CASE~ACAP","3331") -> 0.698 | C3: =B3 -> 0.698 | D3: 0.590 - 0.597 | E3: 0.690 - 0.700 | F3: 0 | G3: 0.581 - 0.605 | H3: 0.606 - 0.655 | I3: 0.656 - 0.673 | J3: 0 | K3: 0 | L3: 0
A4: =[1]!LinkEx("b0ed861a-2a5e-49e9-9713-b7c0c5878c61","Name","CASE~AIFI","3331") -> AIFI | B4: =[1]!LinkEx("b0ed861a-2a5e-49e9-9713-b7c0c5878c61","LastTradePrice","CASE~AIFI","3331") -> 0.514 | C4: =B4 -> 0.514 | D4: 0.354 -0.356 | E4: 0.357 - 0.367 | F4: 0 | G4: 0.461 - 0.465 | H4: 0.466 - 0.481 | I4: 0.482 - 0.489 | J4: 0 | K4: 0 | L4: 0
A5: =[1]!LinkEx("b0ed861a-2a5e-49e9-9713-b7c0c5878c61","Name","CASE~AIH","3331") -> AIH | B5: =[1]!LinkEx("b0ed861a-2a5e-49e9-9713-b7c0c5878c61","LastTradePrice","CASE~AIH","3331") -> 0.547 | C5: 0.547 | D5: 0.463 - 0.485 | E5: 0 | F5: 0 | G5: 0.501 - 0.520 | H5: 0.521 - 0.570 | I5: 0.571 - 0.580 | J5: 0 | K5: 0 | L5: 0
A6: =[1]!LinkEx("b0ed861a-2a5e-49e9-9713-b7c0c5878c61","Name","CASE~AMER","3331") -> AMER | B6: =[1]!LinkEx("b0ed861a-2a5e-49e9-9713-b7c0c5878c61","LastTradePrice","CASE~AMER","3331") -> 0.816 | C6: 0.816 | D6: 0.587 - 0.653 | E6: 0 | F6: 0 | G6: 0.734 - 0.736 | H6: 0.737 - 0.750 | I6: 0.751 - 0.764 | J6: 0 | K6: 0 | L6: 0
A7: =[1]!LinkEx("b0ed861a-2a5e-49e9-9713-b7c0c5878c61","Name","CASE~ARAB","3331") -> ARAB | B7: =[1]!LinkEx("b0ed861a-2a5e-49e9-9713-b7c0c5878c61","LastTradePrice","CASE~ARAB","3331") -> 2.26 | C7: 2.26 | D7: 1.189 - 1.279 | E7: 0 | F7: 0 | G7: 1.606 -1.750 | H7: 1.751 - 2.000 | I7: 2.010 - 2.200 | J7: 0 | K7: 0 | L7: 0
A8: =[1]!LinkEx("b0ed861a-2a5e-49e9-9713-b7c0c5878c61","Name","CASE~ARPI","3331") -> ARPI | B8: =[1]!LinkEx("b0ed861a-2a5e-49e9-9713-b7c0c5878c61","LastTradePrice","CASE~ARPI","3331") -> 0.559 | C8: 0.559 | D8: 0 | E8: 0 | F8: 0 | G8: 0 | H8: 0 | I8: 0 | J8: 0 | K8: 0 | L8: 0
A9: =[1]!LinkEx("b0ed861a-2a5e-49e9-9713-b7c0c5878c61","Name","CASE~ASPI","3331") -> ASPI | B9: =[1]!LinkEx("b0ed861a-2a5e-49e9-9713-b7c0c5878c61","LastTradePrice","CASE~ASPI","3331") -> 0.374 | C9: 0.374 | D9: 0 | E9: 0 | F9: 0 | G9: 0 | H9: 0 | I9: 0 | J9: 0 | K9: 0 | L9: 0
A10: =[1]!LinkEx("b0ed861a-2a5e-49e9-9713-b7c0c5878c61","Name","CASE~BIGP","3331") -> BIGP | B10: =[1]!LinkEx("b0ed861a-2a5e-49e9-9713-b7c0c5878c61","LastTradePrice","CASE~BIGP","3331") -> 0.173 | C10: 0.173 | D10: 0 | E10: 0 | F10: 0 | G10: 0 | H10: 0 | I10: 0 | J10: 0 | K10: 0 | L10: 0
A11: =[1]!LinkEx("b0ed861a-2a5e-49e9-9713-b7c0c5878c61","Name","CASE~CERA","3331") -> CERA | B11: =[1]!LinkEx("b0ed861a-2a5e-49e9-9713-b7c0c5878c61","LastTradePrice","CASE~CERA","3331") -> 1.152 | C11: 1.152 | D11: 0 | E11: 0 | F11: 0 | G11: 0 | H11: 0 | I11: 0 | J11: 0 | K11: 0 | L11: 0
A12: =[1]!LinkEx("b0ed861a-2a5e-49e9-9713-b7c0c5878c61","Name","CASE~COPR","3331") -> COPR | B12: =[1]!LinkEx("b0ed861a-2a5e-49e9-9713-b7c0c5878c61","LastTradePrice","CASE~COPR","3331") -> 0.398 | C12: 0.398 | D12: 0 | E12: 0 | F12: 0 | G12: 0 | H12: 0 | I12: 0 | J12: 0 | K12: 0 | L12: 0
A13: =[1]!LinkEx("b0ed861a-2a5e-49e9-9713-b7c0c5878c61","Name","CASE~COSG","3331") -> COSG | B13: =[1]!LinkEx("b0ed861a-2a5e-49e9-9713-b7c0c5878c61","LastTradePrice","CASE~COSG","3331") -> 0.309 | C13: 0.309 | D13: 0 | E13: 0 | F13: 0 | G13: 0 | H13: 0 | I13: 0 | J13: 0 | K13: 0 | L13: 0
A14: =[1]!LinkEx("b0ed861a-2a5e-49e9-9713-b7c0c5878c61","Name","CASE~DGTZ","3331") -> DGTZ | B14: =[1]!LinkEx("b0ed861a-2a5e-49e9-9713-b7c0c5878c61","LastTradePrice","CASE~DGTZ","3331") -> 10.51 | C14: 10.51 | D14: 0 | E14: 0 | F14: 0 | G14: 0 | H14: 0 | I14: 0 | J14: 0 | K14: 0 | L14: 0
A15: =[1]!LinkEx("b0ed861a-2a5e-49e9-9713-b7c0c5878c61","Name","CASE~DSCW","3331") -> DSCW | B15: =[1]!LinkEx("b0ed861a-2a5e-49e9-9713-b7c0c5878c61","LastTradePrice","CASE~DSCW","3331") -> 1.416 | C15: 1.416 | D15: 0 | E15: 0 | F15: 0 | G15: 0 | H15: 0 | I15: 0 | J15: 0 | K15: 0 | L15: 0
A16: =[1]!LinkEx("b0ed861a-2a5e-49e9-9713-b7c0c5878c61","Name","CASE~EBSC","3331") -> EBSC | B16: =[1]!LinkEx("b0ed861a-2a5e-49e9-9713-b7c0c5878c61","LastTradePrice","CASE~EBSC","3331") -> 0.363 | C16: 0.363 | D16: 0 | E16: 0 | F16: 0 | G16: 0 | H16: 0 | I16: 0 | J16: 0 | K16: 0 | L16: 0
A17: =[1]!LinkEx("b0ed861a-2a5e-49e9-9713-b7c0c5878c61","Name","CASE~EDBM","3331") -> EDBM | B17: =[1]!LinkEx("b0ed861a-2a5e-49e9-9713-b7c0c5878c61","LastTradePrice","CASE~EDBM","3331") -> 0.323 | C17: 0.323 | D17: 0 | E17: 0 | F17: 0 | G17: 0 | H17: 0 | I17: 0 | J17: 0 | K17: 0 | L17: 0
A18: =[1]!LinkEx("b0ed861a-2a5e-49e9-9713-b7c0c5878c61","Name","CASE~EHDR","3331") -> EHDR | B18: =[1]!LinkEx("b0ed861a-2a5e-49e9-9713-b7c0c5878c61","LastTradePrice","CASE~EHDR","3331") -> 0.41 | C18: 0.41 | D18: 0 | E18: 0 | F18: 0 | G18: 0 | H18: 0 | I18: 0 | J18: 0 | K18: 0 | L18: 0
A19: =[1]!LinkEx("b0ed861a-2a5e-49e9-9713-b7c0c5878c61","Name","CASE~EIUD","3331") -> EIUD | B19: =[1]!LinkEx("b0ed861a-2a5e-49e9-9713-b7c0c5878c61","LastTradePrice","CASE~EIUD","3331") -> 0.254 | C19: 0.254 | D19: 0 | E19: 0 | F19: 0 | G19: 0 | H19: 0 | I19: 0 | J19: 0 | K19: 0 | L19: 0
A20: =[1]!LinkEx("b0ed861a-2a5e-49e9-9713-b7c0c5878c61","Name","CASE~ELEC","3331") -> ELEC | B20: =[1]!LinkEx("b0ed861a-2a5e-49e9-9713-b7c0c5878c61","LastTradePrice","CASE~ELEC","3331") -> 3.46 | C20: 3.46 | D20: 0 | E20: 0 | F20: 0 | G20: 0 | H20: 0 | I20: 0 | J20: 0 | K20: 0 | L20: 0
A21: =[1]!LinkEx("b0ed861a-2a5e-49e9-9713-b7c0c5878c61","Name","CASE~ELWA","3331") -> ELWA | B21: =[1]!LinkEx("b0ed861a-2a5e-49e9-9713-b7c0c5878c61","LastTradePrice","CASE~ELWA","3331") -> 0.706 | C21: 0.706 | D21: 0 | E21: 0 | F21: 0 | G21: 0 | H21: 0 | I21: 0 | J21: 0 | K21: 0 | L21: 0
A22: =[1]!LinkEx("b0ed861a-2a5e-49e9-9713-b7c0c5878c61","Name","CASE~ESAC","3331") -> ESAC | B22: =[1]!LinkEx("b0ed861a-2a5e-49e9-9713-b7c0c5878c61","LastTradePrice","CASE~ESAC","3331") -> 0.1 | C22: 0.1 | D22: 0 | E22: 0 | F22: 0 | G22: 0 | H22: 0 | I22: 0 | J22: 0 | K22: 0 | L22: 0
A23: =[1]!LinkEx("b0ed861a-2a5e-49e9-9713-b7c0c5878c61","Name","CASE~FTNS","3331") -> FTNS | B23: =[1]!LinkEx("b0ed861a-2a5e-49e9-9713-b7c0c5878c61","LastTradePrice","CASE~FTNS","3331") -> 2.43 | C23: 2.43 | D23: 0 | E23: 0 | F23: 0 | G23: 0 | H23: 0 | I23: 0 | J23: 0 | K23: 0 | L23: 0
A24: =[1]!LinkEx("b0ed861a-2a5e-49e9-9713-b7c0c5878c61","Name","CASE~GDWA","3331") -> GDWA | B24: =[1]!LinkEx("b0ed861a-2a5e-49e9-9713-b7c0c5878c61","LastTradePrice","CASE~GDWA","3331") -> 4.65 | C24: 4.65 | D24: 0 | E24: 0 | F24: 0 | G24: 0 | H24: 0 | I24: 0 | J24: 0 | K24: 0 | L24: 0
A25: =[1]!LinkEx("b0ed861a-2a5e-49e9-9713-b7c0c5878c61","Name","CASE~GGCC","3331") -> GGCC | B25: =[1]!LinkEx("b0ed861a-2a5e-49e9-9713-b7c0c5878c61","LastTradePrice","CASE~GGCC","3331") -> 0.48 | C25: 0.48 | D25: 0 | E25: 0 | F25: 0 | G25: 0 | H25: 0 | I25: 0 | J25: 0 | K25: 0 | L25: 0
A26: =[1]!LinkEx("b0ed861a-2a5e-49e9-9713-b7c0c5878c61","Name","CASE~GOCO","3331") -> GOCO | B26: =[1]!LinkEx("b0ed861a-2a5e-49e9-9713-b7c0c5878c61","LastTradePrice","CASE~GOCO","3331") -> 0.501 | C26: 0.501 | D26: 0 | E26: 0 | F26: 0 | G26: 0 | H26: 0 | I26: 0 | J26: 0 | K26: 0 | L26: 0
A27: =[1]!LinkEx("b0ed861a-2a5e-49e9-9713-b7c0c5878c61","Name","CASE~IEEC","3331") -> IEEC | B27: =[1]!LinkEx("b0ed861a-2a5e-49e9-9713-b7c0c5878c61","LastTradePrice","CASE~IEEC","3331") -> 0.311 | C27: 0.311 | D27: 0 | E27: 0 | F27: 0 | G27: 0 | H27: 0 | I27: 0 | J27: 0 | K27: 0 | L27: 0
A28: =[1]!LinkEx("b0ed861a-2a5e-49e9-9713-b7c0c5878c61","Name","CASE~INEG","3331") -> INEG | B28: =[1]!LinkEx("b0ed861a-2a5e-49e9-9713-b7c0c5878c61","LastTradePrice","CASE~INEG","3331") -> 0.219 | C28: 0.219 | D28: 0 | E28: 0 | F28: 0 | G28: 0 | H28: 0 | I28: 0 | J28: 0 | K28: 0 | L28: 0
A29: =[1]!LinkEx("b0ed861a-2a5e-49e9-9713-b7c0c5878c61","Name","CASE~KRDI","3331") -> KRDI | B29: =[1]!LinkEx("b0ed861a-2a5e-49e9-9713-b7c0c5878c61","LastTradePrice","CASE~KRDI","3331") -> 1.846 | C29: 1.846 | D29: 0 | E29: 0 | F29: 0 | G29: 0 | H29: 0 | I29: 0 | J29: 0 | K29: 0 | L29: 0
A30: =[1]!LinkEx("b0ed861a-2a5e-49e9-9713-b7c0c5878c61","Name","CASE~LUTS","3331") -> LUTS | B30: =[1]!LinkEx("b0ed861a-2a5e-49e9-9713-b7c0c5878c61","LastTradePrice","CASE~LUTS","3331") -> 0.726 | C30: 0.726 | D30: 0 | E30: 0 | F30: 0 | G30: 0 | H30: 0 | I30: 0 | J30: 0 | K30: 0 | L30: 0
A31: =[1]!LinkEx("b0ed861a-2a5e-49e9-9713-b7c0c5878c61","Name","CASE~MAAL","3331") -> MAAL | B31: =[1]!LinkEx("b0ed861a-2a5e-49e9-9713-b7c0c5878c61","LastTradePrice","CASE~MAAL","3331") -> 2.08 | C31: 2.08 | D31: 0 | E31: 0 | F31: 0 | G31: 0 | H31: 0 | I31: 0 | J31: 0 | K31: 0 | L31: 0
A32: =[1]!LinkEx("b0ed861a-2a5e-49e9-9713-b7c0c5878c61","Name","CASE~MENA","3331") -> MENA | B32: =[1]!LinkEx("b0ed861a-2a5e-49e9-9713-b7c0c5878c61","LastTradePrice","CASE~MENA","3331") -> 1.712 | C32: 1.712 | D32: 0 | E32: 0 | F32: 0 | G32: 0 | H32: 0 | I32: 0 | J32: 0 | K32: 0 | L32: 0
A33: =[1]!LinkEx("b0ed861a-2a5e-49e9-9713-b7c0c5878c61","Name","CASE~MEPA","3331") -> MEPA | B33: =[1]!LinkEx("b0ed861a-2a5e-49e9-9713-b7c0c5878c61","LastTradePrice","CASE~MEPA","3331") -> 1.639 | C33: 1.639 | D33: 0 | E33: 0 | F33: 0 | G33: 0 | H33: 0 | I33: 0 | J33: 0 | K33: 0 | L33: 0
A34: =[1]!LinkEx("b0ed861a-2a5e-49e9-9713-b7c0c5878c61","Name","CASE~MOED","3331") -> MOED | B34: =[1]!LinkEx("b0ed861a-2a5e-49e9-9713-b7c0c5878c61","LastTradePrice","CASE~MOED","3331") -> 0.448 | C34: 0.448 | D34: 0 | E34: 0 | F34: 0 | G34: 0 | H34: 0 | I34: 0 | J34: 0 | K34: 0 | L34: 0
A35: =[1]!LinkEx("b0ed861a-2a5e-49e9-9713-b7c0c5878c61","Name","CASE~MPCO","3331") -> MPCO | B35: =[1]!LinkEx("b0ed861a-2a5e-49e9-9713-b7c0c5878c61","LastTradePrice","CASE~MPCO","3331") -> 1.163 | C35: 1.163 | D35: 0 | E35: 0 | F35: 0 | G35: 0 | H35: 0 | I35: 0 | J35: 0 | K35: 0 | L35: 0
A36: =[1]!LinkEx("b0ed861a-2a5e-49e9-9713-b7c0c5878c61","Name","CASE~OFH","3331") -> OFH | B36: =[1]!LinkEx("b0ed861a-2a5e-49e9-9713-b7c0c5878c61","LastTradePrice","CASE~OFH","3331") -> 0.405 | C36: 0.405 | D36: 0 | E36: 0 | F36: 0 | G36: 0 | H36: 0 | I36: 0 | J36: 0 | K36: 0 | L36: 0
A37: =[1]!LinkEx("b0ed861a-2a5e-49e9-9713-b7c0c5878c61","Name","CASE~OIH","3331") -> OIH | B37: =[1]!LinkEx("b0ed861a-2a5e-49e9-9713-b7c0c5878c61","LastTradePrice","CASE~OIH","3331") -> 0.405 | C37: 0.405 | D37: 0 | E37: 0 | F37: 0 | G37: 0 | H37: 0 | I37: 0 | J37: 0 | K37: 0 | L37: 0
A38: =[1]!LinkEx("b0ed861a-2a5e-49e9-9713-b7c0c5878c61","Name","CASE~PRMH","3331") -> PRMH | B38: =[1]!LinkEx("b0ed861a-2a5e-49e9-9713-b7c0c5878c61","LastTradePrice","CASE~PRMH","3331") -> 0.821 | C38: 0.821 | D38: 0 | E38: 0 | F38: 0 | G38: 0 | H38: 0 | I38: 0 | J38: 0 | K38: 0 | L38: 0
A39: =[1]!LinkEx("b0ed861a-2a5e-49e9-9713-b7c0c5878c61","Name","CASE~RREI","3331") -> RREI | B39: =[1]!LinkEx("b0ed861a-2a5e-49e9-9713-b7c0c5878c61","LastTradePrice","CASE~RREI","3331") -> 1.213 | C39: 1.213 | D39: 0 | E39: 0 | F39: 0 | G39: 0 | H39: 0 | I39: 0 | J39: 0 | K39: 0 | L39: 0
A40: =[1]!LinkEx("b0ed861a-2a5e-49e9-9713-b7c0c5878c61","Name","CASE~SIPC","3331") -> SIPC | B40: =[1]!LinkEx("b0ed861a-2a5e-49e9-9713-b7c0c5878c61","LastTradePrice","CASE~SIPC","3331") -> 0.85 | C40: 0.85 | D40: 0 | E40: 0 | F40: 0 | G40: 0 | H40: 0 | I40: 0 | J40: 0 | K40: 0 | L40: 0
A41: =[1]!LinkEx("b0ed861a-2a5e-49e9-9713-b7c0c5878c61","Name","CASE~SNFC","3331") -> SNFC | B41: =[1]!LinkEx("b0ed861a-2a5e-49e9-9713-b7c0c5878c61","LastTradePrice","CASE~SNFC","3331") -> 1.141 | C41: 1.141 | D41: 0 | E41: 0 | F41: 0 | G41: 0 | H41: 0 | I41: 0 | J41: 0 | K41: 0 | L41: 0
A42: =[1]!LinkEx("b0ed861a-2a5e-49e9-9713-b7c0c5878c61","Name","CASE~SPMD","3331") -> SPMD | B42: =[1]!LinkEx("b0ed861a-2a5e-49e9-9713-b7c0c5878c61","LastTradePrice","CASE~SPMD","3331") -> 0.534 | C42: 0.534 | D42: 0 | E42: 0 | F42: 0 | G42: 0 | H42: 0 | I42: 0 | J42: 0 | K42: 0 | L42: 0
A43: =[1]!LinkEx("b0ed861a-2a5e-49e9-9713-b7c0c5878c61","Name","CASE~TAQA","3331") -> TAQA | B43: =[1]!LinkEx("b0ed861a-2a5e-49e9-9713-b7c0c5878c61","LastTradePrice","CASE~TAQA","3331") -> 16.25 | C43: 16.25 | D43: 0 | E43: 0 | F43: 0 | G43: 0 | H43: 0 | I43: 0 | J43: 0 | K43: 0 | L43: 0
A44: =[1]!LinkEx("b0ed861a-2a5e-49e9-9713-b7c0c5878c61","Name","CASE~UASG","3331") -> UASG | B44: =[1]!LinkEx("b0ed861a-2a5e-49e9-9713-b7c0c5878c61","LastTradePrice","CASE~UASG","3331") -> 0.793 | C44: 0.793 | D44: 0 | E44: 0 | F44: 0 | G44: 0 | H44: 0 | I44: 0 | J44: 0 | K44: 0 | L44: 0
A45: =[1]!LinkEx("b0ed861a-2a5e-49e9-9713-b7c0c5878c61","Name","CASE~UEGC","3331") -> UEGC | B45: =[1]!LinkEx("b0ed861a-2a5e-49e9-9713-b7c0c5878c61","LastTradePrice","CASE~UEGC","3331") -> 0.893 | C45: 0.893 | D45: 0 | E45: 0 | F45: 0 | G45: 0 | H45: 0 | I45: 0 | J45: 0 | K45: 0 | L45: 0
A46: =[1]!LinkEx("b0ed861a-2a5e-49e9-9713-b7c0c5878c61","Name","CASE~UNIP","3331") -> UNIP | B46: =[1]!LinkEx("b0ed861a-2a5e-49e9-9713-b7c0c5878c61","LastTradePrice","CASE~UNIP","3331") -> 0.561 | C46: 0.561 | D46: 0 | E46: 0 | F46: 0 | G46: 0 | H46: 0 | I46: 0 | J46: 0 | K46: 0 | L46: 0
A47: =[1]!LinkEx("b0ed861a-2a5e-49e9-9713-b7c0c5878c61","Name","CASE~VERT","3331") -> VERT | B47: =[1]!LinkEx("b0ed861a-2a5e-49e9-9713-b7c0c5878c61","LastTradePrice","CASE~VERT","3331") -> 0.957 | C47: 0.957 | D47: 0 | E47: 0 | F47: 0 | G47: 0 | H47: 0 | I47: 0 | J47: 0 | K47: 0 | L47: 0
C48: 0 | D48: 0 | E48: 0 | F48: 0 | G48: 0 | H48: 0 | I48: 0 | J48: 0 | K48: 0 | L48: 0
A49: الرمز | B49: أخر | C49: أخر | D49: 0 | E49: 0 | F49: 0 | G49: 0 | H49: 0 | I49: 0 | J49: 0 | K49: 0 | L49: 0
A50: =[1]!LinkEx("7bddb063-ad08-41b6-b4ce-508f2943848a","Name","CASE~ABUK","3331") -> ABUK | B50: =[1]!LinkEx("7bddb063-ad08-41b6-b4ce-508f2943848a","LastTradePrice","CASE~ABUK","3331") -> 91 | C50: 91 | D50: 0 | E50: 0 | F50: 0 | G50: 0 | H50: 0 | I50: 0 | J50: 0 | K50: 0 | L50: 0
A51: =[1]!LinkEx("7bddb063-ad08-41b6-b4ce-508f2943848a","Name","CASE~ACGC","3331") -> ACGC | B51: =[1]!LinkEx("7bddb063-ad08-41b6-b4ce-508f2943848a","LastTradePrice","CASE~ACGC","3331") -> 8.29 | C51: 8.29 | D51: 0 | E51: 0 | F51: 0 | G51: 0 | H51: 0 | I51: 0 | J51: 0 | K51: 0 | L51: 0
A52: =[1]!LinkEx("7bddb063-ad08-41b6-b4ce-508f2943848a","Name","CASE~ADIB","3331") -> ADIB | B52: =[1]!LinkEx("7bddb063-ad08-41b6-b4ce-508f2943848a","LastTradePrice","CASE~ADIB","3331") -> 47.5 | C52: 47.5 | D52: 0 | E52: 0 | F52: 0 | G52: 0 | H52: 0 | I52: 0 | J52: 0 | K52: 0 | L52: 0
A53: =[1]!LinkEx("7bddb063-ad08-41b6-b4ce-508f2943848a","Name","CASE~ADPC","3331") -> ADPC | B53: =[1]!LinkEx("7bddb063-ad08-41b6-b4ce-508f2943848a","LastTradePrice","CASE~ADPC","3331") -> 2.34 | C53: 2.34 | D53: 0 | E53: 0 | F53: 0 | G53: 0 | H53: 0 | I53: 0 | J53: 0 | K53: 0 | L53: 0
A54: =[1]!LinkEx("7bddb063-ad08-41b6-b4ce-508f2943848a","Name","CASE~ADRI","3331") -> ADRI | B54: =[1]!LinkEx("7bddb063-ad08-41b6-b4ce-508f2943848a","LastTradePrice","CASE~ADRI","3331") -> 0.96 | C54: 0.96 | D54: 0 | E54: 0 | F54: 0 | G54: 0 | H54: 0 | I54: 0 | J54: 0 | K54: 0 | L54: 0
A55: =[1]!LinkEx("7bddb063-ad08-41b6-b4ce-508f2943848a","Name","CASE~AFDI","3331") -> AFDI | B55: =[1]!LinkEx("7bddb063-ad08-41b6-b4ce-508f2943848a","LastTradePrice","CASE~AFDI","3331") -> 32.65 | C55: 32.65 | D55: 0 | E55: 0 | F55: 0 | G55: 0 | H55: 0 | I55: 0 | J55: 0 | K55: 0 | L55: 0
A56: =[1]!LinkEx("7bddb063-ad08-41b6-b4ce-508f2943848a","Name","CASE~AFMC","3331") -> AFMC | B56: =[1]!LinkEx("7bddb063-ad08-41b6-b4ce-508f2943848a","LastTradePrice","CASE~AFMC","3331") -> 22 | C56: 22 | D56: 0 | E56: 0 | F56: 0 | G56: 0 | H56: 0 | I56: 0 | J56: 0 | K56: 0 | L56: 0
A57: =[1]!LinkEx("7bddb063-ad08-41b6-b4ce-508f2943848a","Name","CASE~AJWA","3331") -> AJWA | B57: =[1]!LinkEx("7bddb063-ad08-41b6-b4ce-508f2943848a","LastTradePrice","CASE~AJWA","3331") -> 64.97 | C57: 64.97 | D57: 0 | E57: 0 | F57: 0 | G57: 0 | H57: 0 | I57: 0 | J57: 0 | K57: 0 | L57: 0
A58: =[1]!LinkEx("7bddb063-ad08-41b6-b4ce-508f2943848a","Name","CASE~ALCN","3331") -> ALCN | B58: =[1]!LinkEx("7bddb063-ad08-41b6-b4ce-508f2943848a","LastTradePrice","CASE~ALCN","3331") -> 56.46 | C58: 56.46 | D58: 0 | E58: 0 | F58: 0 | G58: 0 | H58: 0 | I58: 0 | J58: 0 | K58: 0 | L58: 0
A59: =[1]!LinkEx("7bddb063-ad08-41b6-b4ce-508f2943848a","Name","CASE~ALUM","3331") -> ALUM | B59: =[1]!LinkEx("7bddb063-ad08-41b6-b4ce-508f2943848a","LastTradePrice","CASE~ALUM","3331") -> 18.23 | C59: 18.23 | D59: 0 | E59: 0 | F59: 0 | G59: 0 | H59: 0 | I59: 0 | J59: 0 | K59: 0 | L59: 0
A60: =[1]!LinkEx("7bddb063-ad08-41b6-b4ce-508f2943848a","Name","CASE~AMIA","3331") -> AMIA | B60: =[1]!LinkEx("7bddb063-ad08-41b6-b4ce-508f2943848a","LastTradePrice","CASE~AMIA","3331") -> 2.8 | C60: 2.8 | D60: 0 | E60: 0 | F60: 0 | G60: 0 | H60: 0 | I60: 0 | J60: 0 | K60: 0 | L60: 0
A61: =[1]!LinkEx("7bddb063-ad08-41b6-b4ce-508f2943848a","Name","CASE~AMOC","3331") -> AMOC | B61: =[1]!LinkEx("7bddb063-ad08-41b6-b4ce-508f2943848a","LastTradePrice","CASE~AMOC","3331") -> 9.84 | C61: 9.84 | D61: 0 | E61: 0 | F61: 0 | G61: 0 | H61: 0 | I61: 0 | J61: 0 | K61: 0 | L61: 0
A62: =[1]!LinkEx("7bddb063-ad08-41b6-b4ce-508f2943848a","Name","CASE~APSW","3331") -> APSW | B62: =[1]!LinkEx("7bddb063-ad08-41b6-b4ce-508f2943848a","LastTradePrice","CASE~APSW","3331") -> 5.4 | C62: 5.4 | D62: 0 | E62: 0 | F62: 0 | G62: 0 | H62: 0 | I62: 0 | J62: 0 | K62: 0 | L62: 0
A63: =[1]!LinkEx("7bddb063-ad08-41b6-b4ce-508f2943848a","Name","CASE~ARCC","3331") -> ARCC | B63: =[1]!LinkEx("7bddb063-ad08-41b6-b4ce-508f2943848a","LastTradePrice","CASE~ARCC","3331") -> 9.97 | C63: 9.97 | D63: 0 | E63: 0 | F63: 0 | G63: 0 | H63: 0 | I63: 0 | J63: 0 | K63: 0 | L63: 0
A64: =[1]!LinkEx("7bddb063-ad08-41b6-b4ce-508f2943848a","Name","CASE~AREH","3331") -> AREH | B64: =[1]!LinkEx("7bddb063-ad08-41b6-b4ce-508f2943848a","LastTradePrice","CASE~AREH","3331") -> 1 | C64: 1 | D64: 0 | E64: 0 | F64: 0 | G64: 0 | H64: 0 | I64: 0 | J64: 0 | K64: 0 | L64: 0
A65: =[1]!LinkEx("7bddb063-ad08-41b6-b4ce-508f2943848a","Name","CASE~ARVA","3331") -> ARVA | B65: =[1]!LinkEx("7bddb063-ad08-41b6-b4ce-508f2943848a","LastTradePrice","CASE~ARVA","3331") -> 2.2 | C65: 2.2 | D65: 0 | E65: 0 | F65: 0 | G65: 0 | H65: 0 | I65: 0 | J65: 0 | K65: 0 | L65: 0
A66: =[1]!LinkEx("7bddb063-ad08-41b6-b4ce-508f2943848a","Name","CASE~ASCM","3331") -> ASCM | B66: =[1]!LinkEx("7bddb063-ad08-41b6-b4ce-508f2943848a","LastTradePrice","CASE~ASCM","3331") -> 53.51 | C66: 53.51 | D66: 0 | E66: 0 | F66: 0 | G66: 0 | H66: 0 | I66: 0 | J66: 0 | K66: 0 | L66: 0
A67: =[1]!LinkEx("7bddb063-ad08-41b6-b4ce-508f2943848a","Name","CASE~ATLC","3331") -> ATLC | B67: =[1]!LinkEx("7bddb063-ad08-41b6-b4ce-508f2943848a","LastTradePrice","CASE~ATLC","3331") -> 5.6 | C67: =B67 -> 5.6 | D67: 0 | E67: 0 | F67: 0 | G67: 0 | H67: 0 | I67: 0 | J67: 0 | K67: 0 | L67: 0
A68: =[1]!LinkEx("7bddb063-ad08-41b6-b4ce-508f2943848a","Name","CASE~ATQA","3331") -> ATQA | B68: =[1]!LinkEx("7bddb063-ad08-41b6-b4ce-508f2943848a","LastTradePrice","CASE~ATQA","3331") -> 4.45 | C68: 4.45 | D68: 0 | E68: 0 | F68: 0 | G68: 0 | H68: 0 | I68: 0 | J68: 0 | K68: 0 | L68: 0
A69: =[1]!LinkEx("7bddb063-ad08-41b6-b4ce-508f2943848a","Name","CASE~BINV","3331") -> BINV | B69: =[1]!LinkEx("7bddb063-ad08-41b6-b4ce-508f2943848a","LastTradePrice","CASE~BINV","3331") -> 26.01 | C69: 26.01 | D69: 0 | E69: 0 | F69: 0 | G69: 0 | H69: 0 | I69: 0 | J69: 0 | K69: 0 | L69: 0
A70: =[1]!LinkEx("7bddb063-ad08-41b6-b4ce-508f2943848a","Name","CASE~BIOC","3331") -> BIOC | B70: =[1]!LinkEx("7bddb063-ad08-41b6-b4ce-508f2943848a","LastTradePrice","CASE~BIOC","3331") -> 38.93 | C70: 38.93 | D70: 0 | E70: 0 | F70: 0 | G70: 0 | H70: 0 | I70: 0 | J70: 0 | K70: 0 | L70: 0
A71: =[1]!LinkEx("7bddb063-ad08-41b6-b4ce-508f2943848a","Name","CASE~BTFH","3331") -> BTFH | B71: =[1]!LinkEx("7bddb063-ad08-41b6-b4ce-508f2943848a","LastTradePrice","CASE~BTFH","3331") -> 3.53 | C71: 3.53 | D71: 0 | E71: 0 | F71: 0 | G71: 0 | H71: 0 | I71: 0 | J71: 0 | K71: 0 | L71: 0
A72: =[1]!LinkEx("7bddb063-ad08-41b6-b4ce-508f2943848a","Name","CASE~CANA","3331") -> CANA | B72: =[1]!LinkEx("7bddb063-ad08-41b6-b4ce-508f2943848a","LastTradePrice","CASE~CANA","3331") -> 15.68 | C72: 15.68 | D72: 0 | E72: 0 | F72: 0 | G72: 0 | H72: 0 | I72: 0 | J72: 0 | K72: 0 | L72: 0
A73: =[1]!LinkEx("7bddb063-ad08-41b6-b4ce-508f2943848a","Name","CASE~CCAP","3331") -> CCAP | B73: =[1]!LinkEx("7bddb063-ad08-41b6-b4ce-508f2943848a","LastTradePrice","CASE~CCAP","3331") -> 2.82 | C73: 2.82 | D73: 0 | E73: 0 | F73: 0 | G73: 0 | H73: 0 | I73: 0 | J73: 0 | K73: 0 | L73: 0
A74: =[1]!LinkEx("7bddb063-ad08-41b6-b4ce-508f2943848a","Name","CASE~CICH","3331") -> CICH | B74: =[1]!LinkEx("7bddb063-ad08-41b6-b4ce-508f2943848a","LastTradePrice","CASE~CICH","3331") -> 5.11 | C74: 5.11 | D74: 0 | E74: 0 | F74: 0 | G74: 0 | H74: 0 | I74: 0 | J74: 0 | K74: 0 | L74: 0
A75: =[1]!LinkEx("7bddb063-ad08-41b6-b4ce-508f2943848a","Name","CASE~CIEB","3331") -> CIEB | B75: =[1]!LinkEx("7bddb063-ad08-41b6-b4ce-508f2943848a","LastTradePrice","CASE~CIEB","3331") -> 25.5 | C75: 25.5 | D75: 0 | E75: 0 | F75: 0 | G75: 0 | H75: 0 | I75: 0 | J75: 0 | K75: 0 | L75: 0
A76: =[1]!LinkEx("7bddb063-ad08-41b6-b4ce-508f2943848a","Name","CASE~CIRA","3331") -> CIRA | B76: =[1]!LinkEx("7bddb063-ad08-41b6-b4ce-508f2943848a","LastTradePrice","CASE~CIRA","3331") -> 13.6 | C76: 13.6 | D76: 0 | E76: 0 | F76: 0 | G76: 0 | H76: 0 | I76: 0 | J76: 0 | K76: 0 | L76: 0
A77: =[1]!LinkEx("7bddb063-ad08-41b6-b4ce-508f2943848a","Name","CASE~CLHO","3331") -> CLHO | B77: =[1]!LinkEx("7bddb063-ad08-41b6-b4ce-508f2943848a","LastTradePrice","CASE~CLHO","3331") -> 5.5 | C77: 5.5 | D77: 0 | E77: 0 | F77: 0 | G77: 0 | H77: 0 | I77: 0 | J77: 0 | K77: 0 | L77: 0
A78: =[1]!LinkEx("7bddb063-ad08-41b6-b4ce-508f2943848a","Name","CASE~CNFN","3331") -> CNFN | B78: =[1]!LinkEx("7bddb063-ad08-41b6-b4ce-508f2943848a","LastTradePrice","CASE~CNFN","3331") -> 3.9 | C78: 3.9 | D78: 0 | E78: 0 | F78: 0 | G78: 0 | H78: 0 | I78: 0 | J78: 0 | K78: 0 | L78: 0
A79: =[1]!LinkEx("7bddb063-ad08-41b6-b4ce-508f2943848a","Name","CASE~COMI","3331") -> COMI | B79: =[1]!LinkEx("7bddb063-ad08-41b6-b4ce-508f2943848a","LastTradePrice","CASE~COMI","3331") -> 77.9 | C79: 77.9 | D79: 0 | E79: 0 | F79: 0 | G79: 0 | H79: 0 | I79: 0 | J79: 0 | K79: 0 | L79: 0
A80: =[1]!LinkEx("7bddb063-ad08-41b6-b4ce-508f2943848a","Name","CASE~CSAG","3331") -> CSAG | B80: =[1]!LinkEx("7bddb063-ad08-41b6-b4ce-508f2943848a","LastTradePrice","CASE~CSAG","3331") -> 35.71 | C80: 35.71 | D80: 0 | E80: 0 | F80: 0 | G80: 0 | H80: 0 | I80: 0 | J80: 0 | K80: 0 | L80: 0
A81: =[1]!LinkEx("7bddb063-ad08-41b6-b4ce-508f2943848a","Name","CASE~DAPH","3331") -> DAPH | B81: =[1]!LinkEx("7bddb063-ad08-41b6-b4ce-508f2943848a","LastTradePrice","CASE~DAPH","3331") -> 0 | C81: 0 | D81: 0 | E81: 0 | F81: 0 | G81: 0 | H81: 0 | I81: 0 | J81: 0 | K81: 0 | L81: 0
A82: =[1]!LinkEx("7bddb063-ad08-41b6-b4ce-508f2943848a","Name","CASE~DOMT","3331") -> DOMT | B82: =[1]!LinkEx("7bddb063-ad08-41b6-b4ce-508f2943848a","LastTradePrice","CASE~DOMT","3331") -> 11.47 | C82: 11.47 | D82: 0 | E82: 0 | F82: 0 | G82: 0 | H82: 0 | I82: 0 | J82: 0 | K82: 0 | L82: 0
A83: =[1]!LinkEx("7bddb063-ad08-41b6-b4ce-508f2943848a","Name","CASE~ECAP","3331") -> ECAP | B83: =[1]!LinkEx("7bddb063-ad08-41b6-b4ce-508f2943848a","LastTradePrice","CASE~ECAP","3331") -> 26 | C83: 26 | D83: 0 | E83: 0 | F83: 0 | G83: 0 | H83: 0 | I83: 0 | J83: 0 | K83: 0 | L83: 0
A84: =[1]!LinkEx("7bddb063-ad08-41b6-b4ce-508f2943848a","Name","CASE~EEII","3331") -> EEII | B84: =[1]!LinkEx("7bddb063-ad08-41b6-b4ce-508f2943848a","LastTradePrice","CASE~EEII","3331") -> 1.587 | C84: 1.587 | D84: 0 | E84: 0 | F84: 0 | G84: 0 | H84: 0 | I84: 0 | J84: 0 | K84: 0 | L84: 0
A85: =[1]!LinkEx("7bddb063-ad08-41b6-b4ce-508f2943848a","Name","CASE~EFIC","3331") -> EFIC | B85: =[1]!LinkEx("7bddb063-ad08-41b6-b4ce-508f2943848a","LastTradePrice","CASE~EFIC","3331") -> 70.3 | C85: 70.3 | D85: 0 | E85: 0 | F85: 0 | G85: 0 | H85: 0 | I85: 0 | J85: 0 | K85: 0 | L85: 0
A86: =[1]!LinkEx("7bddb063-ad08-41b6-b4ce-508f2943848a","Name","CASE~EFID","3331") -> EFID | B86: =[1]!LinkEx("7bddb063-ad08-41b6-b4ce-508f2943848a","LastTradePrice","CASE~EFID","3331") -> 32.49 | C86: 32.49 | D86: 0 | E86: 0 | F86: 0 | G86: 0 | H86: 0 | I86: 0 | J86: 0 | K86: 0 | L86: 0
A87: =[1]!LinkEx("7bddb063-ad08-41b6-b4ce-508f2943848a","Name","CASE~EFIH","3331") -> EFIH | B87: =[1]!LinkEx("7bddb063-ad08-41b6-b4ce-508f2943848a","LastTradePrice","CASE~EFIH","3331") -> 18.2 | C87: 18.2 | D87: 0 | E87: 0 | F87: 0 | G87: 0 | H87: 0 | I87: 0 | J87: 0 | K87: 0 | L87: 0
A88: =[1]!LinkEx("7bddb063-ad08-41b6-b4ce-508f2943848a","Name","CASE~EGAL","3331") -> EGAL | B88: =[1]!LinkEx("7bddb063-ad08-41b6-b4ce-508f2943848a","LastTradePrice","CASE~EGAL","3331") -> 123.99 | C88: 123.99 | D88: 0 | E88: 0 | F88: 0 | G88: 0 | H88: 0 | I88: 0 | J88: 0 | K88: 0 | L88: 0
A89: =[1]!LinkEx("7bddb063-ad08-41b6-b4ce-508f2943848a","Name","CASE~EGAS","3331") -> EGAS | B89: =[1]!LinkEx("7bddb063-ad08-41b6-b4ce-508f2943848a","LastTradePrice","CASE~EGAS","3331") -> 44.99 | C89: 44.99 | D89: 0 | E89: 0 | F89: 0 | G89: 0 | H89: 0 | I89: 0 | J89: 0 | K89: 0 | L89: 0
A90: =[1]!LinkEx("7bddb063-ad08-41b6-b4ce-508f2943848a","Name","CASE~EGCH","3331") -> EGCH | B90: =[1]!LinkEx("7bddb063-ad08-41b6-b4ce-508f2943848a","LastTradePrice","CASE~EGCH","3331") -> 13.94 | C90: 13.94 | D90: 0 | E90: 0 | F90: 0 | G90: 0 | H90: 0 | I90: 0 | J90: 0 | K90: 0 | L90: 0
A91: =[1]!LinkEx("7bddb063-ad08-41b6-b4ce-508f2943848a","Name","CASE~EGTS","3331") -> EGTS | B91: =[1]!LinkEx("7bddb063-ad08-41b6-b4ce-508f2943848a","LastTradePrice","CASE~EGTS","3331") -> 4.03 | C91: 4.03 | D91: 0 | E91: 0 | F91: 0 | G91: 0 | H91: 0 | I91: 0 | J91: 0 | K91: 0 | L91: 0
A92: =[1]!LinkEx("7bddb063-ad08-41b6-b4ce-508f2943848a","Name","CASE~EKHOA","3331") -> EKHOA | B92: =[1]!LinkEx("7bddb063-ad08-41b6-b4ce-508f2943848a","LastTradePrice","CASE~EKHOA","3331") -> 48.84 | C92: 48.84 | D92: 0 | E92: 0 | F92: 0 | G92: 0 | H92: 0 | I92: 0 | J92: 0 | K92: 0 | L92: 0
A93: =[1]!LinkEx("7bddb063-ad08-41b6-b4ce-508f2943848a","Name","CASE~ELKA","3331") -> ELKA | B93: =[1]!LinkEx("7bddb063-ad08-41b6-b4ce-508f2943848a","LastTradePrice","CASE~ELKA","3331") -> 1.87 | C93: 1.87 | D93: 0 | E93: 0 | F93: 0 | G93: 0 | H93: 0 | I93: 0 | J93: 0 | K93: 0 | L93: 0
A94: =[1]!LinkEx("7bddb063-ad08-41b6-b4ce-508f2943848a","Name","CASE~ELSH","3331") -> ELSH | B94: =[1]!LinkEx("7bddb063-ad08-41b6-b4ce-508f2943848a","LastTradePrice","CASE~ELSH","3331") -> 8.83 | C94: 8.83 | D94: 0 | E94: 0 | F94: 0 | G94: 0 | H94: 0 | I94: 0 | J94: 0 | K94: 0 | L94: 0
A95: =[1]!LinkEx("7bddb063-ad08-41b6-b4ce-508f2943848a","Name","CASE~EMFD","3331") -> EMFD | B95: =[1]!LinkEx("7bddb063-ad08-41b6-b4ce-508f2943848a","LastTradePrice","CASE~EMFD","3331") -> 5.31 | C95: 5.31 | D95: 0 | E95: 0 | F95: 0 | G95: 0 | H95: 0 | I95: 0 | J95: 0 | K95: 0 | L95: 0
A96: =[1]!LinkEx("7bddb063-ad08-41b6-b4ce-508f2943848a","Name","CASE~ENGC","3331") -> ENGC | B96: =[1]!LinkEx("7bddb063-ad08-41b6-b4ce-508f2943848a","LastTradePrice","CASE~ENGC","3331") -> 14.1 | C96: 14.1 | D96: 0 | E96: 0 | F96: 0 | G96: 0 | H96: 0 | I96: 0 | J96: 0 | K96: 0 | L96: 0
A97: =[1]!LinkEx("7bddb063-ad08-41b6-b4ce-508f2943848a","Name","CASE~EPCO","3331") -> EPCO | B97: =[1]!LinkEx("7bddb063-ad08-41b6-b4ce-508f2943848a","LastTradePrice","CASE~EPCO","3331") -> 5.07 | C97: 5.07 | D97: 0 | E97: 0 | F97: 0 | G97: 0 | H97: 0 | I97: 0 | J97: 0 | K97: 0 | L97: 0
A98: =[1]!LinkEx("7bddb063-ad08-41b6-b4ce-508f2943848a","Name","CASE~ESRS","3331") -> ESRS | B98: =[1]!LinkEx("7bddb063-ad08-41b6-b4ce-508f2943848a","LastTradePrice","CASE~ESRS","3331") -> 80.16 | C98: 80.16 | D98: 0 | E98: 0 | F98: 0 | G98: 0 | H98: 0 | I98: 0 | J98: 0 | K98: 0 | L98: 0
A99: =[1]!LinkEx("7bddb063-ad08-41b6-b4ce-508f2943848a","Name","CASE~ETEL","3331") -> ETEL | B99: =[1]!LinkEx("7bddb063-ad08-41b6-b4ce-508f2943848a","LastTradePrice","CASE~ETEL","3331") -> 37.01 | C99: 37.01 | D99: 0 | E99: 0 | F99: 0 | G99: 0 | H99: 0 | I99: 0 | J99: 0 | K99: 0 | L99: 0
A100: =[1]!LinkEx("7bddb063-ad08-41b6-b4ce-508f2943848a","Name","CASE~ETRS","3331") -> ETRS | B100: =[1]!LinkEx("7bddb063-ad08-41b6-b4ce-508f2943848a","LastTradePrice","CASE~ETRS","3331") -> 4.87 | C100: 4.87 | D100: 0 | E100: 0 | F100: 0 | G100: 0 | H100: 0 | I100: 0 | J100: 0 | K100: 0 | L100: 0
A101: =[1]!LinkEx("7bddb063-ad08-41b6-b4ce-508f2943848a","Name","CASE~EXPA","3331") -> EXPA | B101: =[1]!LinkEx("7bddb063-ad08-41b6-b4ce-508f2943848a","LastTradePrice","CASE~EXPA","3331") -> 28.79 | C101: 28.79 | D101: 0 | E101: 0 | F101: 0 | G101: 0 | H101: 0 | I101: 0 | J101: 0 | K101: 0 | L101: 0
A102: =[1]!LinkEx("7bddb063-ad08-41b6-b4ce-508f2943848a","Name","CASE~FAIT","3331") -> FAIT | B102: =[1]!LinkEx("7bddb063-ad08-41b6-b4ce-508f2943848a","LastTradePrice","CASE~FAIT","3331") -> 37.33 | C102: 37.33 | D102: 0 | E102: 0 | F102: 0 | G102: 0 | H102: 0 | I102: 0 | J102: 0 | K102: 0 | L102: 0
A103: =[1]!LinkEx("7bddb063-ad08-41b6-b4ce-508f2943848a","Name","CASE~FIRE","3331") -> FIRE | B103: =[1]!LinkEx("7bddb063-ad08-41b6-b4ce-508f2943848a","LastTradePrice","CASE~FIRE","3331") -> 2.33 | C103: 2.33 | D103: 0 | E103: 0 | F103: 0 | G103: 0 | H103: 0 | I103: 0 | J103: 0 | K103: 0 | L103: 0
A104: =[1]!LinkEx("7bddb063-ad08-41b6-b4ce-508f2943848a","Name","CASE~FNAR","3331") -> FNAR | B104: =[1]!LinkEx("7bddb063-ad08-41b6-b4ce-508f2943848a","LastTradePrice","CASE~FNAR","3331") -> 2.4 | C104: 2.4 | D104: 0 | E104: 0 | F104: 0 | G104: 0 | H104: 0 | I104: 0 | J104: 0 | K104: 0 | L104: 0
A105: =[1]!LinkEx("7bddb063-ad08-41b6-b4ce-508f2943848a","Name","CASE~GBCO","3331") -> GBCO | B105: =[1]!LinkEx("7bddb063-ad08-41b6-b4ce-508f2943848a","LastTradePrice","CASE~GBCO","3331") -> 8.46 | C105: 8.46 | D105: 0 | E105: 0 | F105: 0 | G105: 0 | H105: 0 | I105: 0 | J105: 0 | K105: 0 | L105: 0
A106: =[1]!LinkEx("7bddb063-ad08-41b6-b4ce-508f2943848a","Name","CASE~GSSC","3331") -> GSSC | B106: =[1]!LinkEx("7bddb063-ad08-41b6-b4ce-508f2943848a","LastTradePrice","CASE~GSSC","3331") -> 128.5 | C106: 128.5 | D106: 0 | E106: 0 | F106: 0 | G106: 0 | H106: 0 | I106: 0 | J106: 0 | K106: 0 | L106: 0
A107: =[1]!LinkEx("7bddb063-ad08-41b6-b4ce-508f2943848a","Name","CASE~GTHE","3331") -> GTHE | B107: =[1]!LinkEx("7bddb063-ad08-41b6-b4ce-508f2943848a","LastTradePrice","CASE~GTHE","3331") -> 2.3 | C107: 2.3 | D107: 0 | E107: 0 | F107: 0 | G107: 0 | H107: 0 | I107: 0 | J107: 0 | K107: 0 | L107: 0
A108: =[1]!LinkEx("7bddb063-ad08-41b6-b4ce-508f2943848a","Name","CASE~HCFI","3331") -> HCFI | B108: =[1]!LinkEx("7bddb063-ad08-41b6-b4ce-508f2943848a","LastTradePrice","CASE~HCFI","3331") -> 1.94 | C108: 1.94 | D108: 0 | E108: 0 | F108: 0 | G108: 0 | H108: 0 | I108: 0 | J108: 0 | K108: 0 | L108: 0
A109: =[1]!LinkEx("7bddb063-ad08-41b6-b4ce-508f2943848a","Name","CASE~HDBK","3331") -> HDBK | B109: =[1]!LinkEx("7bddb063-ad08-41b6-b4ce-508f2943848a","LastTradePrice","CASE~HDBK","3331") -> 47 | C109: 47 | D109: 0 | E109: 0 | F109: 0 | G109: 0 | H109: 0 | I109: 0 | J109: 0 | K109: 0 | L109: 0
C110: 0 | D110: 0 | E110: 0 | F110: 0 | G110: 0 | H110: 0 | I110: 0 | J110: 0 | K110: 0 | L110: 0
A111: الرمز | B111: أخر | C111: أخر | D111: 0 | E111: 0 | F111: 0 | G111: 0 | H111: 0 | I111: 0 | J111: 0 | K111: 0 | L111: 0
A112: =[1]!LinkEx("472848ee-7db4-44c2-ad37-c00ff69c9488","Name","CASE~HELI","3331") -> HELI | B112: =[1]!LinkEx("472848ee-7db4-44c2-ad37-c00ff69c9488","LastTradePrice","CASE~HELI","3331") -> 11.16 | C112: 11.16 | D112: 0 | E112: 0 | F112: 0 | G112: 0 | H112: 0 | I112: 0 | J112: 0 | K112: 0 | L112: 0
A113: =[1]!LinkEx("472848ee-7db4-44c2-ad37-c00ff69c9488","Name","CASE~HRHO","3331") -> HRHO | B113: =[1]!LinkEx("472848ee-7db4-44c2-ad37-c00ff69c9488","LastTradePrice","CASE~HRHO","3331") -> 18.21 | C113: 18.21 | D113: 0 | E113: 0 | F113: 0 | G113: 0 | H113: 0 | I113: 0 | J113: 0 | K113: 0 | L113: 0
A114: =[1]!LinkEx("472848ee-7db4-44c2-ad37-c00ff69c9488","Name","CASE~ICID","3331") -> ICID | B114: =[1]!LinkEx("472848ee-7db4-44c2-ad37-c00ff69c9488","LastTradePrice","CASE~ICID","3331") -> 4.14 | C114: 4.14 | D114: 0 | E114: 0 | F114: 0 | G114: 0 | H114: 0 | I114: 0 | J114: 0 | K114: 0 | L114: 0
A115: =[1]!LinkEx("472848ee-7db4-44c2-ad37-c00ff69c9488","Name","CASE~IFAP","3331") -> IFAP | B115: =[1]!LinkEx("472848ee-7db4-44c2-ad37-c00ff69c9488","LastTradePrice","CASE~IFAP","3331") -> 16.91 | C115: 16.91 | D115: 0 | E115: 0 | F115: 0 | G115: 0 | H115: 0 | I115: 0 | J115: 0 | K115: 0 | L115: 0
A116: =[1]!LinkEx("472848ee-7db4-44c2-ad37-c00ff69c9488","Name","CASE~IRON","3331") -> IRON | B116: =[1]!LinkEx("472848ee-7db4-44c2-ad37-c00ff69c9488","LastTradePrice","CASE~IRON","3331") -> 0 | C116: 0 | D116: 0 | E116: 0 | F116: 0 | G116: 0 | H116: 0 | I116: 0 | J116: 0 | K116: 0 | L116: 0
A117: =[1]!LinkEx("472848ee-7db4-44c2-ad37-c00ff69c9488","Name","CASE~ISMA","3331") -> ISMA | B117: =[1]!LinkEx("472848ee-7db4-44c2-ad37-c00ff69c9488","LastTradePrice","CASE~ISMA","3331") -> 12.32 | C117: 12.32 | D117: 0 | E117: 0 | F117: 0 | G117: 0 | H117: 0 | I117: 0 | J117: 0 | K117: 0 | L117: 0
A118: =[1]!LinkEx("472848ee-7db4-44c2-ad37-c00ff69c9488","Name","CASE~ISMQ","3331") -> ISMQ | B118: =[1]!LinkEx("472848ee-7db4-44c2-ad37-c00ff69c9488","LastTradePrice","CASE~ISMQ","3331") -> 4.52 | C118: 4.52 | D118: 0 | E118: 0 | F118: 0 | G118: 0 | H118: 0 | I118: 0 | J118: 0 | K118: 0 | L118: 0
A119: =[1]!LinkEx("472848ee-7db4-44c2-ad37-c00ff69c9488","Name","CASE~ISPH","3331") -> ISPH | B119: =[1]!LinkEx("472848ee-7db4-44c2-ad37-c00ff69c9488","LastTradePrice","CASE~ISPH","3331") -> 3.46 | C119: 3.46 | D119: 0 | E119: 0 | F119: 0 | G119: 0 | H119: 0 | I119: 0 | J119: 0 | K119: 0 | L119: 0
A120: =[1]!LinkEx("472848ee-7db4-44c2-ad37-c00ff69c9488","Name","CASE~JUFO","3331") -> JUFO | B120: =[1]!LinkEx("472848ee-7db4-44c2-ad37-c00ff69c9488","LastTradePrice","CASE~JUFO","3331") -> 18.75 | C120: 18.75 | D120: 0 | E120: 0 | F120: 0 | G120: 0 | H120: 0 | I120: 0 | J120: 0 | K120: 0 | L120: 0
A121: =[1]!LinkEx("472848ee-7db4-44c2-ad37-c00ff69c9488","Name","CASE~KABO","3331") -> KABO | B121: =[1]!LinkEx("472848ee-7db4-44c2-ad37-c00ff69c9488","LastTradePrice","CASE~KABO","3331") -> 3.12 | C121: 3.12 | D121: 0 | E121: 0 | F121: 0 | G121: 0 | H121: 0 | I121: 0 | J121: 0 | K121: 0 | L121: 0
A122: =[1]!LinkEx("472848ee-7db4-44c2-ad37-c00ff69c9488","Name","CASE~KZPC","3331") -> KZPC | B122: =[1]!LinkEx("472848ee-7db4-44c2-ad37-c00ff69c9488","LastTradePrice","CASE~KZPC","3331") -> 9.33 | C122: 9.33 | D122: 0 | E122: 0 | F122: 0 | G122: 0 | H122: 0 | I122: 0 | J122: 0 | K122: 0 | L122: 0
A123: =[1]!LinkEx("472848ee-7db4-44c2-ad37-c00ff69c9488","Name","CASE~LCSW","3331") -> LCSW | B123: =[1]!LinkEx("472848ee-7db4-44c2-ad37-c00ff69c9488","LastTradePrice","CASE~LCSW","3331") -> 24.86 | C123: 24.86 | D123: 0 | E123: 0 | F123: 0 | G123: 0 | H123: 0 | I123: 0 | J123: 0 | K123: 0 | L123: 0
A124: =[1]!LinkEx("472848ee-7db4-44c2-ad37-c00ff69c9488","Name","CASE~MASR","3331") -> MASR | B124: =[1]!LinkEx("472848ee-7db4-44c2-ad37-c00ff69c9488","LastTradePrice","CASE~MASR","3331") -> 4.45 | C124: 4.45 | D124: 0 | E124: 0 | F124: 0 | G124: 0 | H124: 0 | I124: 0 | J124: 0 | K124: 0 | L124: 0
A125: =[1]!LinkEx("472848ee-7db4-44c2-ad37-c00ff69c9488","Name","CASE~MBSC","3331") -> MBSC | B125: =[1]!LinkEx("472848ee-7db4-44c2-ad37-c00ff69c9488","LastTradePrice","CASE~MBSC","3331") -> 49 | C125: 49 | D125: 0 | E125: 0 | F125: 0 | G125: 0 | H125: 0 | I125: 0 | J125: 0 | K125: 0 | L125: 0
A126: =[1]!LinkEx("472848ee-7db4-44c2-ad37-c00ff69c9488","Name","CASE~MCQE","3331") -> MCQE | B126: =[1]!LinkEx("472848ee-7db4-44c2-ad37-c00ff69c9488","LastTradePrice","CASE~MCQE","3331") -> 21.13 | C126: 21.13 | D126: 0 | E126: 0 | F126: 0 | G126: 0 | H126: 0 | I126: 0 | J126: 0 | K126: 0 | L126: 0
A127: =[1]!LinkEx("472848ee-7db4-44c2-ad37-c00ff69c9488","Name","CASE~MCRO","3331") -> MCRO | B127: =[1]!LinkEx("472848ee-7db4-44c2-ad37-c00ff69c9488","LastTradePrice","CASE~MCRO","3331") -> 3.13 | C127: 3.13 | D127: 0 | E127: 0 | F127: 0 | G127: 0 | H127: 0 | I127: 0 | J127: 0 | K127: 0 | L127: 0
A128: =[1]!LinkEx("472848ee-7db4-44c2-ad37-c00ff69c9488","Name","CASE~MFPC","3331") -> MFPC | B128: =[1]!LinkEx("472848ee-7db4-44c2-ad37-c00ff69c9488","LastTradePrice","CASE~MFPC","3331") -> 78 | C128: 78 | D128: 0 | E128: 0 | F128: 0 | G128: 0 | H128: 0 | I128: 0 | J128: 0 | K128: 0 | L128: 0
A129: =[1]!LinkEx("472848ee-7db4-44c2-ad37-c00ff69c9488","Name","CASE~MHOT","3331") -> MHOT | B129: =[1]!LinkEx("472848ee-7db4-44c2-ad37-c00ff69c9488","LastTradePrice","CASE~MHOT","3331") -> 118 | C129: 118 | D129: 0 | E129: 0 | F129: 0 | G129: 0 | H129: 0 | I129: 0 | J129: 0 | K129: 0 | L129: 0
A130: =[1]!LinkEx("472848ee-7db4-44c2-ad37-c00ff69c9488","Name","CASE~MICH","3331") -> MICH | B130: =[1]!LinkEx("472848ee-7db4-44c2-ad37-c00ff69c9488","LastTradePrice","CASE~MICH","3331") -> 53.39 | C130: 53.39 | D130: 0 | E130: 0 | F130: 0 | G130: 0 | H130: 0 | I130: 0 | J130: 0 | K130: 0 | L130: 0
A131: =[1]!LinkEx("472848ee-7db4-44c2-ad37-c00ff69c9488","Name","CASE~MPCI","3331") -> MPCI | B131: =[1]!LinkEx("472848ee-7db4-44c2-ad37-c00ff69c9488","LastTradePrice","CASE~MPCI","3331") -> 107.89 | C131: =B131 -> 107.89 | D131: 0 | E131: 0 | F131: 0 | G131: 0 | H131: 0 | I131: 0 | J131: 0 | K131: 0 | L131: 0
A132: =[1]!LinkEx("472848ee-7db4-44c2-ad37-c00ff69c9488","Name","CASE~MPRC","3331") -> MPRC | B132: =[1]!LinkEx("472848ee-7db4-44c2-ad37-c00ff69c9488","LastTradePrice","CASE~MPRC","3331") -> 22.29 | C132: 22.29 | D132: 0 | E132: 0 | F132: 0 | G132: 0 | H132: 0 | I132: 0 | J132: 0 | K132: 0 | L132: 0
A133: =[1]!LinkEx("472848ee-7db4-44c2-ad37-c00ff69c9488","Name","CASE~MTIE","3331") -> MTIE | B133: =[1]!LinkEx("472848ee-7db4-44c2-ad37-c00ff69c9488","LastTradePrice","CASE~MTIE","3331") -> 7.65 | C133: 7.65 | D133: 0 | E133: 0 | F133: 0 | G133: 0 | H133: 0 | I133: 0 | J133: 0 | K133: 0 | L133: 0
A134: =[1]!LinkEx("472848ee-7db4-44c2-ad37-c00ff69c9488","Name","CASE~NCCW","3331") -> NCCW | B134: =[1]!LinkEx("472848ee-7db4-44c2-ad37-c00ff69c9488","LastTradePrice","CASE~NCCW","3331") -> 4.03 | C134: 4.03 | D134: 0 | E134: 0 | F134: 0 | G134: 0 | H134: 0 | I134: 0 | J134: 0 | K134: 0 | L134: 0
A135: =[1]!LinkEx("472848ee-7db4-44c2-ad37-c00ff69c9488","Name","CASE~NEDA","3331") -> NEDA | B135: =[1]!LinkEx("472848ee-7db4-44c2-ad37-c00ff69c9488","LastTradePrice","CASE~NEDA","3331") -> 2.91 | C135: 2.91 | D135: 0 | E135: 0 | F135: 0 | G135: 0 | H135: 0 | I135: 0 | J135: 0 | K135: 0 | L135: 0
A136: =[1]!LinkEx("472848ee-7db4-44c2-ad37-c00ff69c9488","Name","CASE~NHPS","3331") -> NHPS | B136: =[1]!LinkEx("472848ee-7db4-44c2-ad37-c00ff69c9488","LastTradePrice","CASE~NHPS","3331") -> 33.88 | C136: 33.88 | D136: 0 | E136: 0 | F136: 0 | G136: 0 | H136: 0 | I136: 0 | J136: 0 | K136: 0 | L136: 0
A137: =[1]!LinkEx("472848ee-7db4-44c2-ad37-c00ff69c9488","Name","CASE~OBRI","3331") -> OBRI | B137: =[1]!LinkEx("472848ee-7db4-44c2-ad37-c00ff69c9488","LastTradePrice","CASE~OBRI","3331") -> 12.45 | C137: 12.45 | D137: 0 | E137: 0 | F137: 0 | G137: 0 | H137: 0 | I137: 0 | J137: 0 | K137: 0 | L137: 0
A138: =[1]!LinkEx("472848ee-7db4-44c2-ad37-c00ff69c9488","Name","CASE~OCDI","3331") -> OCDI | B138: =[1]!LinkEx("472848ee-7db4-44c2-ad37-c00ff69c9488","LastTradePrice","CASE~OCDI","3331") -> 23.88 | C138: 23.88 | D138: 0 | E138: 0 | F138: 0 | G138: 0 | H138: 0 | I138: 0 | J138: 0 | K138: 0 | L138: 0
A139: =[1]!LinkEx("472848ee-7db4-44c2-ad37-c00ff69c9488","Name","CASE~ODIN","3331") -> ODIN | B139: =[1]!LinkEx("472848ee-7db4-44c2-ad37-c00ff69c9488","LastTradePrice","CASE~ODIN","3331") -> 2.78 | C139: 2.78 | D139: 0 | E139: 0 | F139: 0 | G139: 0 | H139: 0 | I139: 0 | J139: 0 | K139: 0 | L139: 0
A140: =[1]!LinkEx("472848ee-7db4-44c2-ad37-c00ff69c9488","Name","CASE~OLFI","3331") -> OLFI | B140: =[1]!LinkEx("472848ee-7db4-44c2-ad37-c00ff69c9488","LastTradePrice","CASE~OLFI","3331") -> 11.42 | C140: 11.42 | D140: 0 | E140: 0 | F140: 0 | G140: 0 | H140: 0 | I140: 0 | J140: 0 | K140: 0 | L140: 0
A141: =[1]!LinkEx("472848ee-7db4-44c2-ad37-c00ff69c9488","Name","CASE~ORAS","3331") -> ORAS | B141: =[1]!LinkEx("472848ee-7db4-44c2-ad37-c00ff69c9488","LastTradePrice","CASE~ORAS","3331") -> 193.58 | C141: 193.58 | D141: 0 | E141: 0 | F141: 0 | G141: 0 | H141: 0 | I141: 0 | J141: 0 | K141: 0 | L141: 0
A142: =[1]!LinkEx("472848ee-7db4-44c2-ad37-c00ff69c9488","Name","CASE~ORHD","3331") -> ORHD | B142: =[1]!LinkEx("472848ee-7db4-44c2-ad37-c00ff69c9488","LastTradePrice","CASE~ORHD","3331") -> 13.6 | C142: 13.6 | D142: 0 | E142: 0 | F142: 0 | G142: 0 | H142: 0 | I142: 0 | J142: 0 | K142: 0 | L142: 0
A143: =[1]!LinkEx("472848ee-7db4-44c2-ad37-c00ff69c9488","Name","CASE~ORWE","3331") -> ORWE | B143: =[1]!LinkEx("472848ee-7db4-44c2-ad37-c00ff69c9488","LastTradePrice","CASE~ORWE","3331") -> 22.25 | C143: 22.25 | D143: 0 | E143: 0 | F143: 0 | G143: 0 | H143: 0 | I143: 0 | J143: 0 | K143: 0 | L143: 0
A144: =[1]!LinkEx("472848ee-7db4-44c2-ad37-c00ff69c9488","Name","CASE~PHAR","3331") -> PHAR | B144: =[1]!LinkEx("472848ee-7db4-44c2-ad37-c00ff69c9488","LastTradePrice","CASE~PHAR","3331") -> 42.3 | C144: 42.3 | D144: 0 | E144: 0 | F144: 0 | G144: 0 | H144: 0 | I144: 0 | J144: 0 | K144: 0 | L144: 0
A145: =[1]!LinkEx("472848ee-7db4-44c2-ad37-c00ff69c9488","Name","CASE~PHDC","3331") -> PHDC | B145: =[1]!LinkEx("472848ee-7db4-44c2-ad37-c00ff69c9488","LastTradePrice","CASE~PHDC","3331") -> 3.61 | C145: 3.61 | D145: 0 | E145: 0 | F145: 0 | G145: 0 | H145: 0 | I145: 0 | J145: 0 | K145: 0 | L145: 0
A146: =[1]!LinkEx("472848ee-7db4-44c2-ad37-c00ff69c9488","Name","CASE~POUL","3331") -> POUL | B146: =[1]!LinkEx("472848ee-7db4-44c2-ad37-c00ff69c9488","LastTradePrice","CASE~POUL","3331") -> 10.3 | C146: 10.3 | D146: 0 | E146: 0 | F146: 0 | G146: 0 | H146: 0 | I146: 0 | J146: 0 | K146: 0 | L146: 0
A147: =[1]!LinkEx("472848ee-7db4-44c2-ad37-c00ff69c9488","Name","CASE~PRCL","3331") -> PRCL | B147: =[1]!LinkEx("472848ee-7db4-44c2-ad37-c00ff69c9488","LastTradePrice","CASE~PRCL","3331") -> 13.59 | C147: 13.59 | D147: 0 | E147: 0 | F147: 0 | G147: 0 | H147: 0 | I147: 0 | J147: 0 | K147: 0 | L147: 0
A148: =[1]!LinkEx("472848ee-7db4-44c2-ad37-c00ff69c9488","Name","CASE~PRDC","3331") -> PRDC | B148: =[1]!LinkEx("472848ee-7db4-44c2-ad37-c00ff69c9488","LastTradePrice","CASE~PRDC","3331") -> 2.83 | C148: 2.83 | D148: 0 | E148: 0 | F148: 0 | G148: 0 | H148: 0 | I148: 0 | J148: 0 | K148: 0 | L148: 0
A149: =[1]!LinkEx("472848ee-7db4-44c2-ad37-c00ff69c9488","Name","CASE~QNBA","3331") -> QNBA | B149: =[1]!LinkEx("472848ee-7db4-44c2-ad37-c00ff69c9488","LastTradePrice","CASE~QNBA","3331") -> 40.82 | C149: 40.82 | D149: 0 | E149: 0 | F149: 0 | G149: 0 | H149: 0 | I149: 0 | J149: 0 | K149: 0 | L149: 0
A150: =[1]!LinkEx("472848ee-7db4-44c2-ad37-c00ff69c9488","Name","CASE~RACC","3331") -> RACC | B150: =[1]!LinkEx("472848ee-7db4-44c2-ad37-c00ff69c9488","LastTradePrice","CASE~RACC","3331") -> 5.65 | C150: 5.65 | D150: 0 | E150: 0 | F150: 0 | G150: 0 | H150: 0 | I150: 0 | J150: 0 | K150: 0 | L150: 0
A151: =[1]!LinkEx("472848ee-7db4-44c2-ad37-c00ff69c9488","Name","CASE~RAKT","3331") -> RAKT | B151: =[1]!LinkEx("472848ee-7db4-44c2-ad37-c00ff69c9488","LastTradePrice","CASE~RAKT","3331") -> 17.08 | C151: 17.08 | D151: 0 | E151: 0 | F151: 0 | G151: 0 | H151: 0 | I151: 0 | J151: 0 | K151: 0 | L151: 0
A152: =[1]!LinkEx("472848ee-7db4-44c2-ad37-c00ff69c9488","Name","CASE~RAYA","3331") -> RAYA | B152: =[1]!LinkEx("472848ee-7db4-44c2-ad37-c00ff69c9488","LastTradePrice","CASE~RAYA","3331") -> 4.7 | C152: 4.7 | D152: 0 | E152: 0 | F152: 0 | G152: 0 | H152: 0 | I152: 0 | J152: 0 | K152: 0 | L152: 0
A153: =[1]!LinkEx("472848ee-7db4-44c2-ad37-c00ff69c9488","Name","CASE~RMDA","3331") -> RMDA | B153: =[1]!LinkEx("472848ee-7db4-44c2-ad37-c00ff69c9488","LastTradePrice","CASE~RMDA","3331") -> 2.31 | C153: 2.31 | D153: 0 | E153: 0 | F153: 0 | G153: 0 | H153: 0 | I153: 0 | J153: 0 | K153: 0 | L153: 0
A154: =[1]!LinkEx("472848ee-7db4-44c2-ad37-c00ff69c9488","Name","CASE~ROTO","3331") -> ROTO | B154: =[1]!LinkEx("472848ee-7db4-44c2-ad37-c00ff69c9488","LastTradePrice","CASE~ROTO","3331") -> 27.97 | C154: 27.97 | D154: 0 | E154: 0 | F154: 0 | G154: 0 | H154: 0 | I154: 0 | J154: 0 | K154: 0 | L154: 0
A155: =[1]!LinkEx("472848ee-7db4-44c2-ad37-c00ff69c9488","Name","CASE~RTVC","3331") -> RTVC | B155: =[1]!LinkEx("472848ee-7db4-44c2-ad37-c00ff69c9488","LastTradePrice","CASE~RTVC","3331") -> 3.68 | C155: 3.68 | D155: 0 | E155: 0 | F155: 0 | G155: 0 | H155: 0 | I155: 0 | J155: 0 | K155: 0 | L155: 0
A156: =[1]!LinkEx("472848ee-7db4-44c2-ad37-c00ff69c9488","Name","CASE~RUBX","3331") -> RUBX | B156: =[1]!LinkEx("472848ee-7db4-44c2-ad37-c00ff69c9488","LastTradePrice","CASE~RUBX","3331") -> 6.73 | C156: 6.73 | D156: 0 | E156: 0 | F156: 0 | G156: 0 | H156: 0 | I156: 0 | J156: 0 | K156: 0 | L156: 0
A157: =[1]!LinkEx("472848ee-7db4-44c2-ad37-c00ff69c9488","Name","CASE~SAUD","3331") -> SAUD | B157: =[1]!LinkEx("472848ee-7db4-44c2-ad37-c00ff69c9488","LastTradePrice","CASE~SAUD","3331") -> 15.25 | C157: 15.25 | D157: 0 | E157: 0 | F157: 0 | G157: 0 | H157: 0 | I157: 0 | J157: 0 | K157: 0 | L157: 0
A158: =[1]!LinkEx("472848ee-7db4-44c2-ad37-c00ff69c9488","Name","CASE~SDTI","3331") -> SDTI | B158: =[1]!LinkEx("472848ee-7db4-44c2-ad37-c00ff69c9488","LastTradePrice","CASE~SDTI","3331") -> 21.8 | C158: 21.8 | D158: 0 | E158: 0 | F158: 0 | G158: 0 | H158: 0 | I158: 0 | J158: 0 | K158: 0 | L158: 0
A159: =[1]!LinkEx("472848ee-7db4-44c2-ad37-c00ff69c9488","Name","CASE~SKPC","3331") -> SKPC | B159: =[1]!LinkEx("472848ee-7db4-44c2-ad37-c00ff69c9488","LastTradePrice","CASE~SKPC","3331") -> 38.6 | C159: 38.6 | D159: 0 | E159: 0 | F159: 0 | G159: 0 | H159: 0 | I159: 0 | J159: 0 | K159: 0 | L159: 0
A160: =[1]!LinkEx("472848ee-7db4-44c2-ad37-c00ff69c9488","Name","CASE~SMFR","3331") -> SMFR | B160: =[1]!LinkEx("472848ee-7db4-44c2-ad37-c00ff69c9488","LastTradePrice","CASE~SMFR","3331") -> 53.04 | C160: 53.04 | D160: 0 | E160: 0 | F160: 0 | G160: 0 | H160: 0 | I160: 0 | J160: 0 | K160: 0 | L160: 0
A161: =[1]!LinkEx("472848ee-7db4-44c2-ad37-c00ff69c9488","Name","CASE~SPIN","3331") -> SPIN | B161: =[1]!LinkEx("472848ee-7db4-44c2-ad37-c00ff69c9488","LastTradePrice","CASE~SPIN","3331") -> 5.6 | C161: 5.6 | D161: 0 | E161: 0 | F161: 0 | G161: 0 | H161: 0 | I161: 0 | J161: 0 | K161: 0 | L161: 0
A162: =[1]!LinkEx("472848ee-7db4-44c2-ad37-c00ff69c9488","Name","CASE~SUGR","3331") -> SUGR | B162: =[1]!LinkEx("472848ee-7db4-44c2-ad37-c00ff69c9488","LastTradePrice","CASE~SUGR","3331") -> 89.76 | C162: 89.76 | D162: 0 | E162: 0 | F162: 0 | G162: 0 | H162: 0 | I162: 0 | J162: 0 | K162: 0 | L162: 0
A163: =[1]!LinkEx("472848ee-7db4-44c2-ad37-c00ff69c9488","Name","CASE~SVCE","3331") -> SVCE | B163: =[1]!LinkEx("472848ee-7db4-44c2-ad37-c00ff69c9488","LastTradePrice","CASE~SVCE","3331") -> 2.29 | C163: 2.29 | D163: 0 | E163: 0 | F163: 0 | G163: 0 | H163: 0 | I163: 0 | J163: 0 | K163: 0 | L163: 0
A164: =[1]!LinkEx("472848ee-7db4-44c2-ad37-c00ff69c9488","Name","CASE~SWDY","3331") -> SWDY | B164: =[1]!LinkEx("472848ee-7db4-44c2-ad37-c00ff69c9488","LastTradePrice","CASE~SWDY","3331") -> 32.09 | C164: 32.09 | D164: 0 | E164: 0 | F164: 0 | G164: 0 | H164: 0 | I164: 0 | J164: 0 | K164: 0 | L164: 0
A165: =[1]!LinkEx("472848ee-7db4-44c2-ad37-c00ff69c9488","Name","CASE~TALM","3331") -> TALM | B165: =[1]!LinkEx("472848ee-7db4-44c2-ad37-c00ff69c9488","LastTradePrice","CASE~TALM","3331") -> 6.35 | C165: 6.35 | D165: 0 | E165: 0 | F165: 0 | G165: 0 | H165: 0 | I165: 0 | J165: 0 | K165: 0 | L165: 0
A166: =[1]!LinkEx("472848ee-7db4-44c2-ad37-c00ff69c9488","Name","CASE~TMGH","3331") -> TMGH | B166: =[1]!LinkEx("472848ee-7db4-44c2-ad37-c00ff69c9488","LastTradePrice","CASE~TMGH","3331") -> 37.5 | C166: 37.5 | D166: 0 | E166: 0 | F166: 0 | G166: 0 | H166: 0 | I166: 0 | J166: 0 | K166: 0 | L166: 0
A167: =[1]!LinkEx("472848ee-7db4-44c2-ad37-c00ff69c9488","Name","CASE~TORA","3331") -> TORA | B167: =[1]!LinkEx("472848ee-7db4-44c2-ad37-c00ff69c9488","LastTradePrice","CASE~TORA","3331") -> 27.6 | C167: 27.6 | D167: 0 | E167: 0 | F167: 0 | G167: 0 | H167: 0 | I167: 0 | J167: 0 | K167: 0 | L167: 0
A168: =[1]!LinkEx("472848ee-7db4-44c2-ad37-c00ff69c9488","Name","CASE~UNIT","3331") -> UNIT | B168: =[1]!LinkEx("472848ee-7db4-44c2-ad37-c00ff69c9488","LastTradePrice","CASE~UNIT","3331") -> 7.6 | C168: 7.6 | D168: 0 | E168: 0 | F168: 0 | G168: 0 | H168: 0 | I168: 0 | J168: 0 | K168: 0 | L168: 0
A169: =[1]!LinkEx("472848ee-7db4-44c2-ad37-c00ff69c9488","Name","CASE~ZEOT","3331") -> ZEOT | B169: =[1]!LinkEx("472848ee-7db4-44c2-ad37-c00ff69c9488","LastTradePrice","CASE~ZEOT","3331") -> 3.02 | C169: 3.02 | D169: 0 | E169: 0 | F169: 0 | G169: 0 | H169: 0 | I169: 0 | J169: 0 | K169: 0 | L169: 0
A170: =[1]!LinkEx("472848ee-7db4-44c2-ad37-c00ff69c9488","Name","CASE~ZMID","3331") -> ZMID | B170: =[1]!LinkEx("472848ee-7db4-44c2-ad37-c00ff69c9488","LastTradePrice","CASE~ZMID","3331") -> 8.71 | C170: 8.71 | D170: 0 | E170: 0 | F170: 0 | G170: 0 | H170: 0 | I170: 0 | J170: 0 | K170: 0 | L170: 0
C171: 0 | D171: 0 | E171: 0 | F171: 0 | G171: 0 | H171: 0 | I171: 0 | J171: 0 | K171: 0 | L171: 0
A172: الرمز | B172: أخر | C172: أخر | D172: 0 | E172: 0 | F172: 0 | G172: 0 | H172: 0 | I172: 0 | J172: 0 | K172: 0 | L172: 0
A173: الرمز | B173: أخر | C173: أخر | D173: 0 | E173: 0 | F173: 0 | G173: 0 | H173: 0 | I173: 0 | J173: 0 | K173: 0 | L173: 0
A174: =[1]!LinkEx("9727b145-e2d1-4c89-94fc-3775a0a3dce9","Name","CASE~AALR","3331") -> AALR | B174: =[1]!LinkEx("9727b145-e2d1-4c89-94fc-3775a0a3dce9","LastTradePrice","CASE~AALR","3331") -> 45.5 | C174: 45.5 | D174: 0 | E174: 0 | F174: 0 | G174: 0 | H174: 0 | I174: 0 | J174: 0 | K174: 0 | L174: 0
A175: =[1]!LinkEx("9727b145-e2d1-4c89-94fc-3775a0a3dce9","Name","CASE~ACRO","3331") -> ACRO | B175: =[1]!LinkEx("9727b145-e2d1-4c89-94fc-3775a0a3dce9","LastTradePrice","CASE~ACRO","3331") -> 45.9 | C175: 45.9 | D175: 0 | E175: 0 | F175: 0 | G175: 0 | H175: 0 | I175: 0 | J175: 0 | K175: 0 | L175: 0
A176: =[1]!LinkEx("9727b145-e2d1-4c89-94fc-3775a0a3dce9","Name","CASE~APPC","3331") -> APPC | B176: =[1]!LinkEx("9727b145-e2d1-4c89-94fc-3775a0a3dce9","LastTradePrice","CASE~APPC","3331") -> 1.08 | C176: 1.08 | D176: 0 | E176: 0 | F176: 0 | G176: 0 | H176: 0 | I176: 0 | J176: 0 | K176: 0 | L176: 0
A177: =[1]!LinkEx("9727b145-e2d1-4c89-94fc-3775a0a3dce9","Name","CASE~CILB","3331") -> CILB | B177: =[1]!LinkEx("9727b145-e2d1-4c89-94fc-3775a0a3dce9","LastTradePrice","CASE~CILB","3331") -> 0 | C177: 0 | D177: 0 | E177: 0 | F177: 0 | G177: 0 | H177: 0 | I177: 0 | J177: 0 | K177: 0 | L177: 0
A178: =[1]!LinkEx("9727b145-e2d1-4c89-94fc-3775a0a3dce9","Name","CASE~CPCI","3331") -> CPCI | B178: =[1]!LinkEx("9727b145-e2d1-4c89-94fc-3775a0a3dce9","LastTradePrice","CASE~CPCI","3331") -> 68.06 | C178: 68.06 | D178: 0 | E178: 0 | F178: 0 | G178: 0 | H178: 0 | I178: 0 | J178: 0 | K178: 0 | L178: 0
A179: =[1]!LinkEx("9727b145-e2d1-4c89-94fc-3775a0a3dce9","Name","CASE~DTPP","3331") -> DTPP | B179: =[1]!LinkEx("9727b145-e2d1-4c89-94fc-3775a0a3dce9","LastTradePrice","CASE~DTPP","3331") -> 37.49 | C179: 37.49 | D179: 0 | E179: 0 | F179: 0 | G179: 0 | H179: 0 | I179: 0 | J179: 0 | K179: 0 | L179: 0
A180: =[1]!LinkEx("9727b145-e2d1-4c89-94fc-3775a0a3dce9","Name","CASE~EASB","3331") -> EASB | B180: =[1]!LinkEx("9727b145-e2d1-4c89-94fc-3775a0a3dce9","LastTradePrice","CASE~EASB","3331") -> 8.26 | C180: 8.26 | D180: 0 | E180: 0 | F180: 0 | G180: 0 | H180: 0 | I180: 0 | J180: 0 | K180: 0 | L180: 0
A181: =[1]!LinkEx("9727b145-e2d1-4c89-94fc-3775a0a3dce9","Name","CASE~EDFM","3331") -> EDFM | B181: =[1]!LinkEx("9727b145-e2d1-4c89-94fc-3775a0a3dce9","LastTradePrice","CASE~EDFM","3331") -> 174.01 | C181: 174.01 | D181: 0 | E181: 0 | F181: 0 | G181: 0 | H181: 0 | I181: 0 | J181: 0 | K181: 0 | L181: 0
A182: =[1]!LinkEx("9727b145-e2d1-4c89-94fc-3775a0a3dce9","Name","CASE~ELNA","3331") -> ELNA | B182: =[1]!LinkEx("9727b145-e2d1-4c89-94fc-3775a0a3dce9","LastTradePrice","CASE~ELNA","3331") -> 15.85 | C182: 15.85 | D182: 0 | E182: 0 | F182: 0 | G182: 0 | H182: 0 | I182: 0 | J182: 0 | K182: 0 | L182: 0
A183: =[1]!LinkEx("9727b145-e2d1-4c89-94fc-3775a0a3dce9","Name","CASE~ESAC","3331") -> ESAC | B183: =[1]!LinkEx("9727b145-e2d1-4c89-94fc-3775a0a3dce9","LastTradePrice","CASE~ESAC","3331") -> 0.1 | C183: 0.1 | D183: 0 | E183: 0 | F183: 0 | G183: 0 | H183: 0 | I183: 0 | J183: 0 | K183: 0 | L183: 0
A184: =[1]!LinkEx("9727b145-e2d1-4c89-94fc-3775a0a3dce9","Name","CASE~GMCI","3331") -> GMCI | B184: =[1]!LinkEx("9727b145-e2d1-4c89-94fc-3775a0a3dce9","LastTradePrice","CASE~GMCI","3331") -> 1.226 | C184: 1.226 | D184: 0 | E184: 0 | F184: 0 | G184: 0 | H184: 0 | I184: 0 | J184: 0 | K184: 0 | L184: 0
A185: =[1]!LinkEx("9727b145-e2d1-4c89-94fc-3775a0a3dce9","Name","CASE~GSSC","3331") -> GSSC | B185: =[1]!LinkEx("9727b145-e2d1-4c89-94fc-3775a0a3dce9","LastTradePrice","CASE~GSSC","3331") -> 128.5 | C185: 128.5 | D185: 0 | E185: 0 | F185: 0 | G185: 0 | H185: 0 | I185: 0 | J185: 0 | K185: 0 | L185: 0
A186: =[1]!LinkEx("9727b145-e2d1-4c89-94fc-3775a0a3dce9","Name","CASE~GTHE","3331") -> GTHE | B186: =[1]!LinkEx("9727b145-e2d1-4c89-94fc-3775a0a3dce9","LastTradePrice","CASE~GTHE","3331") -> 2.3 | C186: 2.3 | D186: 0 | E186: 0 | F186: 0 | G186: 0 | H186: 0 | I186: 0 | J186: 0 | K186: 0 | L186: 0
A187: =[1]!LinkEx("9727b145-e2d1-4c89-94fc-3775a0a3dce9","Name","CASE~HCFI","3331") -> HCFI | B187: =[1]!LinkEx("9727b145-e2d1-4c89-94fc-3775a0a3dce9","LastTradePrice","CASE~HCFI","3331") -> 1.94 | C187: 1.94 | D187: 0 | E187: 0 | F187: 0 | G187: 0 | H187: 0 | I187: 0 | J187: 0 | K187: 0 | L187: 0
A188: =[1]!LinkEx("9727b145-e2d1-4c89-94fc-3775a0a3dce9","Name","CASE~ICFC","3331") -> ICFC | B188: =[1]!LinkEx("9727b145-e2d1-4c89-94fc-3775a0a3dce9","LastTradePrice","CASE~ICFC","3331") -> 32.52 | C188: 32.52 | D188: 0 | E188: 0 | F188: 0 | G188: 0 | H188: 0 | I188: 0 | J188: 0 | K188: 0 | L188: 0
A189: =[1]!LinkEx("9727b145-e2d1-4c89-94fc-3775a0a3dce9","Name","CASE~REAC","3331") -> REAC | B189: =[1]!LinkEx("9727b145-e2d1-4c89-94fc-3775a0a3dce9","LastTradePrice","CASE~REAC","3331") -> 4.7 | C189: 4.7 | D189: 0 | E189: 0 | F189: 0 | G189: 0 | H189: 0 | I189: 0 | J189: 0 | K189: 0 | L189: 0
A190: =[1]!LinkEx("9727b145-e2d1-4c89-94fc-3775a0a3dce9","Name","CASE~RUBX","3331") -> RUBX | B190: =[1]!LinkEx("9727b145-e2d1-4c89-94fc-3775a0a3dce9","LastTradePrice","CASE~RUBX","3331") -> 6.73 | C190: 6.73 | D190: 0 | E190: 0 | F190: 0 | G190: 0 | H190: 0 | I190: 0 | J190: 0 | K190: 0 | L190: 0
A191: =[1]!LinkEx("9727b145-e2d1-4c89-94fc-3775a0a3dce9","Name","CASE~SCEM","3331") -> SCEM | B191: =[1]!LinkEx("9727b145-e2d1-4c89-94fc-3775a0a3dce9","LastTradePrice","CASE~SCEM","3331") -> 12.34 | C191: 12.34 | D191: 0 | E191: 0 | F191: 0 | G191: 0 | H191: 0 | I191: 0 | J191: 0 | K191: 0 | L191: 0
A192: =[1]!LinkEx("9727b145-e2d1-4c89-94fc-3775a0a3dce9","Name","CASE~TANM","3331") -> TANM | B192: =[1]!LinkEx("9727b145-e2d1-4c89-94fc-3775a0a3dce9","LastTradePrice","CASE~TANM","3331") -> 2.7 | C192: 2.7 | D192: 0 | E192: 0 | F192: 0 | G192: 0 | H192: 0 | I192: 0 | J192: 0 | K192: 0 | L192: 0
A193: =[1]!LinkEx("9727b145-e2d1-4c89-94fc-3775a0a3dce9","Name","CASE~TORA","3331") -> TORA | B193: =[1]!LinkEx("9727b145-e2d1-4c89-94fc-3775a0a3dce9","LastTradePrice","CASE~TORA","3331") -> 27.6 | C193: 27.6 | D193: 0 | E193: 0 | F193: 0 | G193: 0 | H193: 0 | I193: 0 | J193: 0 | K193: 0 | L193: 0
